Workbook

Sheet Getting Started
B2: Getting Started
B4: Explaination of the Assesment Tool and how it works
B5: This tool has been set up to assist Pacific producers to work through the process of choosing which of the certification schemes is best for them. The assessment works by looking at what your business looks like now and what it could look like under a certification scheme. This will guide you towards the appropriate certification scheme.
B7: The Process
B8: Become familiar with what advantages you can gain from becoming certified
B10: Gain an understanding of the range of certification schemes that are availabe for Pacific producers.
B12: Enter data on what your production system is like now and what you plan it to be.
B14: This may require you to carry out some business planning.
B16: Assess which of the schemes is the most suitable for your system.
B18: This may require that you go back through your production system and alter the way that you intend to carry out production.
B20: Make a decision on which is the most suitable system for you.
B22: Contact a certifying agency to discuss in more detail what process you have to go through to become certified.
B25: How To Guide
B27: Step 1: Read through the "What Certification Offers" Tab to get an understanding of each of the certification types
B28: Step 2: Fill out the blue squares in the "Assessment" Tab under the headings "What your business looks like now" and "What your business would look like with certification" (these are predominantly drop down boxes)
B29: Step 3: Go to the Suitability Tab. The results of your assessments for what your business looks like now and under a certification scheme are displayed and then are assessed against the certification schemes. If your result reads "suitable" this means your operation meets the basic suitability test for that certification. If it says "Not Completely Suitable" refer to the red boxes for guidance on where your business is not suitable with the certification. At the bottom of the assessment this you will see the expected revenue with the particular certification and the net benefit of gaining certification
B30: Step 4: Go to the "Decision Finder" Tab. This will show the qualitative suitability of each of the certification types and the potential financial return. It will then identify which certification types are both suitable and financially beneficial.
B33: Glossary of Terms
B35: Current Profit: Profit is the money you have left after paying for business expenses
B36: Premium with Certification : The additional money you will receive with a certification. This is expressed as a percentage in the calculation; to work this out divide the price you would receive with certification by the price you receive before certification minus 1. If you are unsure of the premium you would receive take a look at Table B for guidance.
B37: Example: price with certification - $6.50, price without certification $5
B38: Premium can be calculated by (6.50/5)-100 = 0.3 or 30%
B40: Change in Volume Produced: This is the difference between the quantity produced currently and the quantity you would be producing with certification. This is expressed as a percentage in the calculation; to work this out divide the volume you would produce with certification by the volume you produce now minus 1.
B41: Example: Quantity Produced Now: 10,000 tonnes Quantity Produced with Certification: 15,000
B42: Change in volume can be calculated by (15,000/10,00)-1 = 0.5 or 50%
B44: Estimated Cost of Certification: This is the cost that is associated with each individual certification, if you are unsure of the costs you may face around the certification you can use Table A as a guide.
B46: Estimated Profit with Certification: This outlines the amount of money you are likely to make with the specific certification
B48: Estimated Profit Gain from Certification: This is the benefit of gaining certification compared to your current situation.
B50: Social Good: Social good is defined as an action that provides some sort of benefit to the general public.
B52: Sole Grower: This means you are an individual grower that is a sole operator.
B54: Processor: This means that you take raw materials and process them into a product beyond the raw material
B56: Grower Group: This means that you are operating with multiple other producers/processors under an internal control system
B58: PGS: Stands for Participatory Guarantee System

Sheet What Certification offers
B2: What Certification Offers
B4: This section explains is what is involved in certification is a formal recognition and acknowledgement that the practices which are being carried out by the growers meet the requirements of the developers of the standards and can be regularly verified as meeting those standards by the certificating body.
B5: We surveyed Pacific growers and stakeholders who gained market or quality certification for their farms or production systems. Here are some benefits they shared:
B6: ü Enables access to higher value markets.
B7: ü Provides assurance in relation to the safety of food that we produce.
B8: ü Improves the image / branding of our farms business.
B9: ü Results in improved production efficiency and profitability for my farm / business.
B10: ü Enables our business to identify and manage risks.
B11: ü Provides assurance that our business is operating sustainability.
B12: ü Obtains information to help make business decisions and develop strategies.
B13: What we can take from the survey results are that all of the options had a high recognition as to their benefits from the respondents and so were significant. We note that any move towards certification should be market driven, align with market demand and be representative of consumer preferences
B14: The Elements of Certification
B15: ü The broad elements of certification of growers systems fall into two broad categories
B16: ü Provides assurance on the safety or quality of a product.
B17: ü Providing that the grower practics being carried out are sustainable be it the environment, social or economic sustainability
B19: Explanation of the Certification schemes available.
C21: Organic Participatory Guarantee System | D21: Organic 3rd Party Certification Individual | E21: Organic 3rd Party Certification Grower Group | F21: Fair Trade | G21: Food Safety | H21: Rain Forest Alliance | I21: Sustainable Fisheries
B24: Description | C24: PGS systems are locally focused organic assurance systems. This guarantee provides farmers with recognition in local markets without the same compliance requirements as an ICS system or the costs associated with it. This system suits farmers who wish to sell locally but wish to be able to label their products as organic. | D24: 3rd Party Organic Certification by an independent accredited Certification Body [CB] to an Organic Standard is more complicated than PGS certification but it is necessary to access Regulated Organic Markets. | E24: Group certification is an approach that facilitates access for small operators wishing to gain organic certification and access to organic markets. This allows the smaller operators to access third-party certification. Due to there being multiple farmers involved the amount of administration required in this process is larger however the certification costs for group members are lower than on an individual basis. | F24: Fairtrade changes the way trade works through better prices, decent working conditions and a fairer deal for farmers and workers in developing countries. A product with the FAIRTRADE Mark means producers and businesses have met internationally agreed standards which have been independently certified. | G24: There area wide range of food safety programs available. They range from the simple HACCP schemes through to the complicated GlobalGAP schemes. | H24: The Rainforest Alliance is a sustainable agriculture certification. Rainforest certification looks at sustainability based on three pillars of economic, social and environmental[1]. Third-party auditors critically assess farmers against their requirements in these three areas before awarding certification. | I24: The blue fish tick and fishery certification program is designed to contribute to the health of the world’s oceans by recognising and rewarding sustainable fishing practices, influencing the choices people make when buying seafood and working with partners to transform the seafood market to a sustainable basis.
B25: Commodities Covered | C25: The commodities available under organics are abundant and include most whole fresh produce, alcohol, coffee, tea, edible flowers, wild crops, grains, meat, aquaculture and more | F25: A wide range of products from consumables. | G25: All food | H25: A wide range of products from consumables. | I25: Seafood
B26: Barriers to entry | C26: Low | D26: High | E26: Moderate | F26: High | G26: Range from low to High | H26: High | I26: High
B27: Scope
B28: Food safety | G28: ü
B29: Sustainability | D29: ü | E29: ü | F29: ü | H29: ü | I29: ü
B30: Production / Process | C30: ü | D30: ü | E30: ü | F30: ü
B31: Employment/Social | F31: ü | H31: ü
B32: Benefits
B33: Additional market Access | C33: ü | D33: ü | E33: ü | F33: ü | G33: ü | H33: ü
B34: Premium Prices | C34: ü | D34: ü | E34: ü | F34: ü | G34: ü | H34: ü | I34: ü
B35: Upskilling Business Operation Capability | C35: ü | D35: ü | G35: ü | H35: ü | I35: ü

Sheet Assessment
B2: Assessment
B4: What Does Your Business Look Like
C5: Fill In Below
B6: Country | C6: Fiji
B7: Crops/Enterprises | C7: Fruit & Vegetables | D7: Note: If your crop type is not included in the list this does not mean your product is not suitable. Select a similar crop for the purposes of the tool
B8: Classify your operation. | C8: Grower Group
B9: How long have you been operating (years) | C9: 2-5
B10: Number of staff/workers | C10: 2-5
B11: Do you have a business plan. | C11: Yes | D11: =IF(C11="No","We would advice you to develop a business plan using the Business Plan Tab","") -> 
B12: Is your business growing. | C12: Slowly
B13: Do you have advice on running your business. | C13: No
B14: Do you have a relationship with a processor / exporter. | C14: No
B15: =IF(OR(C6="Cook islands",C6="Niue",C6="Samoa"),"What is your current revenue ($NZD)",IF(OR(C6="Federated States of Micronesia",C6="Palau",C6="Republic of Marshall Islands",C6="Timor Leste"),"What is your current revenue ($USD)",IF(C6="Fiji","What is your current revenue ($FJD)",IF(OR(C6="Nauru",C6="Kiribati",C6="Tuvalu"),"What is your current revenue ($AUSD)",IF(C6="Papua New Guinea","What is your current revenue ($PGK)",IF(C6="Solomon Islands","What is your current revenue ($SBD)",IF(C6="Tonga","What is your current revenue ($TOP)",IF(C6="Vanuatu","What is your current revenue ($VUV)",IF(OR(C6="French Polynesia",C6="New Caledonia"),"What is your current revenue ($F)"))))))))) -> What is your current revenue ($FJD) | C15: 40000
B16: What proportion of your revenue is profit. ( %) | C16: 0.4
B17: =IF(OR(C8="Grower Group",C8="Grower Group, Processor",C8="Grower Group, Retailer", C8="Grower Group, Exporter", C8= "Grower Group, Processor, Retailer", C8="Grower Group, Processor, Retailer, Exporter",C8="Grower Group, Processor, Exporter", C8="Grower Group, Retailer, Exporter"),"How many farmers are part of your grower group?", "") -> How many farmers are part of your grower group? | C17: 30
B19: What Your Business Looks Like Under a Certification Scheme
C20: Fill In Below
B21: Markets | C21: Local Market
B22: Chemical use | C22: No
B23: Employment practices | C23: Formal Contracts
B24: Does Your Operation Contribute To Sustainability/Social Good? | C24: Yes
B25: Are Potential Consumers Demanding Food Safety Requirements? | C25: No
B26: What premium are you expecting if certified (Food Saftey - HACCP) (%) | C26: N/A
B27: What premium are you expecting if certified (Food Saftey - Global Gap) (%) | C27: 0.3
B28: What premium are you expecting if certified (Rainforest Alliance) (%) | C28: 0.3
B29: What premium are you expecting if certified (Organic PGS) (%) | C29: 0.6
B30: What premium are you expecting if certified (Organic 3rd Party) (%) | C30: 0.5
B31: What premium are you expecting if certified (Sustainable Fisheries) (%) | C31: 0.1
B32: What premium are you expecting if certified (Fair Trade) (%) | C32: 0.5
B33: What change in production are you expecting? (%) | C33: 0.1
B35: If you are unsure of the premium you might receive, the below can be used as a guide
B36: Certification | C36: Premium Indication
B37: Organic PGS | C37: 5-10%
B38: Organic Individual | C38: 20-40%
B39: Organic Grower Group | C39: 20-40%
B40: Fair Trade | C40: 15-30%
B41: Food Saftey (GlobalGAP) | C41: 15-30%
B42: Food Safety (HACCP) | C42: 10-20%
B43: Rainforest Alliance | C43: 15-30%
B44: Sustainable Fisheries | C44: 20-40%

Sheet Suitability
B3: Suitability
B5: With Certification Suitability | C5: Organic PGS | D5: Organic Individual (3rd Party) | E5: Organic Grower Group (3rd party) | F5: Fair Trade | G5: Food Saftey (HACCP) | H5: Food Saftey (Global Gap) | I5: Rainforest Alliance | J5: Sustainable Fisheries Marine Stewardship Council
B6: Crops/Enterprises | C6: =IF(OR(Assessment!C7="Coffee",Assessment!C7="Fruit & Vegetables",Assessment!C7="Cocoa",Assessment!C7="Vanilla",Assessment!C7="Kava",Assessment!C7="Wood",Assessment!C7="Beauty", Assessment!C7="Livestock",Assessment!C7="Fish", Assessment!C7= "Aquaculture"),"Suitable Produce","Produce Not Suitable") -> Suitable Produce | D6: =IF(OR(Assessment!C7="Coffee",Assessment!C7="Fruit & Vegetables",Assessment!C7="Cocoa",Assessment!C7="Vanilla",Assessment!C7="Herbs & Spices",Assessment!C7="Ginger", Assessment!C7="Coconut", Assessment!C7="Sugar", Assessment!C7="Palm Oil", Assessment!C7="Tea", Assessment!C7= "Nuts", Assessment!C7="Beauty", Assessment!C7="Livestock",Assessment!C7="Fish", Assessment!C7= "Aquaculture"),"Suitable Produce","Produce Not Suitable") -> Suitable Produce | E6: =IF(OR(Assessment!C7="Coffee",Assessment!C7="Fruit & Vegetables",Assessment!C7="Cocoa",Assessment!C7="Vanilla",Assessment!C7="Herbs & Spices",Assessment!C7="Ginger", Assessment!C7="Coconut", Assessment!C7="Sugar", Assessment!C7="Palm Oil", Assessment!C7="Tea", Assessment!C7= "Nuts", Assessment!C7="Beauty", Assessment!C7="Livestock",Assessment!C7="Fish", Assessment!C7= "Aquaculture"),"Suitable Produce","Produce Not Suitable") -> Suitable Produce | F6: =IF(OR(Assessment!C7="Coffee",Assessment!C7="Coconut",Assessment!C7="Cocoa",Assessment!C7="Vanilla",Assessment!C7="Sugar",Assessment!C7="Ginger"),"Suitable Produce","Produce Not Suitable") -> Produce Not Suitable | G6: =IF(OR(Assessment!C7="Coffee",Assessment!C7="Fruit & Vegetables",Assessment!C7="Cocoa",Assessment!C7="Vanilla",Assessment!C7="Kava",Assessment!C7="Wood",Assessment!C7="Beauty", Assessment!C7="Livestock",Assessment!C7="Fish", Assessment!C7= "Aquaculture", Assessment!C7="Herbs & Spices", Assessment!C7= "Ginger", Assessment!C7="Coconut", Assessment!C7= "Sugar", Assessment!C7="Palm Oil", Assessment!C7="Tea", Assessment!C7="Nuts"),"Suitable Produce","Produce Not Suitable") -> Suitable Produce | H6: =IF(OR(Assessment!C7="Coffee",Assessment!C7="Fruit & Vegetables",Assessment!C7="Cocoa",Assessment!C7="Vanilla",Assessment!C7="Kava",Assessment!C7="Wood",Assessment!C7="Beauty", Assessment!C7="Livestock",Assessment!C7="Fish", Assessment!C7= "Aquaculture", Assessment!C7="Herbs & Spices", Assessment!C7= "Ginger", Assessment!C7="Coconut", Assessment!C7= "Sugar", Assessment!C7="Palm Oil", Assessment!C7="Tea", Assessment!C7="Nuts"),"Suitable Produce","Produce Not Suitable") -> Suitable Produce | I6: =IF(OR(Assessment!C7="Coffee", Assessment!C7="Fruit & Vegetables", Assessment!C7="Cocoa", Assessment!C7="Herbs & Spices", Assessment!C7="Nuts", Assessment!C7="Palm Oil", Assessment!C7="Tea"),"Suitable Produce","Produce Not Suitable") -> Suitable Produce | J6: =IF(OR(Assessment!C7="aquaculture",Assessment!C7="fish", Assessment!C7= "Open Sea Fisheries"),"Suitable Produce", "Produce Not Suitable") -> Produce Not Suitable
B7: Classify Your Operation | C7: =IF(OR(Assessment!C8="Sole Grower",Assessment!C8="Processor",Assessment!C8="Retailer",Assessment!C8="Exporter", Assessment!C8="Sole Grower, Processor", Assessment!C8= "Sole Grower, Retailer", Assessment!C8= "Sole Grower, Exporter", Assessment!C8= "Sole Grower, Processor, Retailer", Assessment!C8= "Soler Grower, Processor, Exporter", Assessment!C8= "Sole Grower, Retailer, Exporter", Assessment!C8= "Soler Grower, Processor, Retailer, Exporter", Assessment!C8= "Processor, Retailer", Assessment!C8= "Retailer, Exporter", Assessment!C8= "Processor, Retailer, Exporter"), "Suitable Operation", "Operation Not Suitable") -> Operation Not Suitable | D7: =IF(OR(Assessment!C8="Sole Grower",Assessment!C8="Processor",Assessment!C8="Retailer",Assessment!C8="Exporter", Assessment!C8="Sole Grower, Processor", Assessment!C8= "Sole Grower, Retailer", Assessment!C8= "Sole Grower, Exporter", Assessment!C8= "Sole Grower, Processor, Retailer", Assessment!C8= "Soler Grower, Processor, Exporter", Assessment!C8= "Sole Grower, Retailer, Exporter", Assessment!C8= "Soler Grower, Processor, Retailer, Exporter", Assessment!C8= "Processor, Retailer", Assessment!C8= "Retailer, Exporter", Assessment!C8= "Processor, Retailer, Exporter"), "Suitable Operation", "Operation Not Suitable") -> Operation Not Suitable | E7: =IF(OR(Assessment!C8="Grower Group", Assessment!C8="Grower Group, Processor", Assessment!C8="Grower Group, Retailer", Assessment!C8="Grower Group, Exporter", Assessment!C8="Grower Group, Processor, Retailer", Assessment!C8="Grower Group, Processor, Exporter", Assessment!C8="Grower Group, Processor, Retailer, Exporter"), "Suitable Operation", "Operation Not Suitable") -> Suitable Operation | F7: =IF(OR(Assessment!C8="Sole Grower",Assessment!C8="Processor",Assessment!C8="Retailer",Assessment!C8="Exporter", Assessment!C8="Sole Grower, Processor", Assessment!C8= "Sole Grower, Retailer", Assessment!C8= "Sole Grower, Exporter", Assessment!C8= "Sole Grower, Processor, Retailer", Assessment!C8= "Soler Grower, Processor, Exporter", Assessment!C8= "Sole Grower, Retailer, Exporter", Assessment!C8= "Soler Grower, Processor, Retailer, Exporter", Assessment!C8= "Processor, Retailer", Assessment!C8= "Retailer, Exporter", Assessment!C8= "Processor, Retailer, Exporter"), "Suitable Operation", "Operation Not Suitable") -> Operation Not Suitable | G7: =IF(OR(Assessment!C8="Sole Grower",Assessment!C8="Processor",Assessment!C8="Retailer",Assessment!C8="Exporter", Assessment!C8="Sole Grower, Processor", Assessment!C8= "Sole Grower, Retailer", Assessment!C8= "Sole Grower, Exporter", Assessment!C8= "Sole Grower, Processor, Retailer", Assessment!C8= "Soler Grower, Processor, Exporter", Assessment!C8= "Sole Grower, Retailer, Exporter", Assessment!C8= "Soler Grower, Processor, Retailer, Exporter", Assessment!C8= "Processor, Retailer", Assessment!C8= "Retailer, Exporter", Assessment!C8= "Processor, Retailer, Exporter", Assessment!C8="Grower Group", Assessment!C8="Grower Group, Processor", Assessment!C8="Grower Group, Retailer", Assessment!C8="Grower Group, Exporter", Assessment!C8="Grower Group, Processor, Retailer", Assessment!C8="Grower Group, Processor, Exporter", Assessment!C8="Grower Group, Processor, Retailer, Exporter"), "Suitable Operation", "Operation Not Suitable") -> Suitable Operation | H7: =IF(OR(Assessment!C8="Sole Grower",Assessment!C8="Processor",Assessment!C8="Retailer",Assessment!C8="Exporter", Assessment!C8="Sole Grower, Processor", Assessment!C8= "Sole Grower, Retailer", Assessment!C8= "Sole Grower, Exporter", Assessment!C8= "Sole Grower, Processor, Retailer", Assessment!C8= "Soler Grower, Processor, Exporter", Assessment!C8= "Sole Grower, Retailer, Exporter", Assessment!C8= "Soler Grower, Processor, Retailer, Exporter", Assessment!C8= "Processor, Retailer", Assessment!C8= "Retailer, Exporter", Assessment!C8= "Processor, Retailer, Exporter", Assessment!C8="Grower Group", Assessment!C8="Grower Group, Processor", Assessment!C8="Grower Group, Retailer", Assessment!C8="Grower Group, Exporter", Assessment!C8="Grower Group, Processor, Retailer", Assessment!C8="Grower Group, Processor, Exporter", Assessment!C8="Grower Group, Processor, Retailer, Exporter"), "Suitable Operation", "Operation Not Suitable") -> Suitable Operation | I7: =IF(OR(Assessment!C8="Sole Grower",Assessment!C8="Processor",Assessment!C8="Retailer",Assessment!C8="Exporter", Assessment!C8="Sole Grower, Processor", Assessment!C8= "Sole Grower, Retailer", Assessment!C8= "Sole Grower, Exporter", Assessment!C8= "Sole Grower, Processor, Retailer", Assessment!C8= "Soler Grower, Processor, Exporter", Assessment!C8= "Sole Grower, Retailer, Exporter", Assessment!C8= "Soler Grower, Processor, Retailer, Exporter", Assessment!C8= "Processor, Retailer", Assessment!C8= "Retailer, Exporter", Assessment!C8= "Processor, Retailer, Exporter", Assessment!C8="Grower Group", Assessment!C8="Grower Group, Processor", Assessment!C8="Grower Group, Retailer", Assessment!C8="Grower Group, Exporter", Assessment!C8="Grower Group, Processor, Retailer", Assessment!C8="Grower Group, Processor, Exporter", Assessment!C8="Grower Group, Processor, Retailer, Exporter"), "Suitable Operation", "Operation Not Suitable") -> Suitable Operation | J7: =IF(OR(Assessment!C8="Sole Grower",Assessment!C8="Processor",Assessment!C8="Retailer",Assessment!C8="Exporter", Assessment!C8="Sole Grower, Processor", Assessment!C8= "Sole Grower, Retailer", Assessment!C8= "Sole Grower, Exporter", Assessment!C8= "Sole Grower, Processor, Retailer", Assessment!C8= "Soler Grower, Processor, Exporter", Assessment!C8= "Sole Grower, Retailer, Exporter", Assessment!C8= "Soler Grower, Processor, Retailer, Exporter", Assessment!C8= "Processor, Retailer", Assessment!C8= "Retailer, Exporter", Assessment!C8= "Processor, Retailer, Exporter"), "Suitable Operation", "Operation Not Suitable") -> Operation Not Suitable
B8: Markets | C8: =IF(OR(Assessment!C21="Local", Assessment!C21="Pacific Region",Assessment!C21="Local, Pacific Region"),"Suitable Certification For Market", "Certification Not Suitable For Market") -> Certification Not Suitable For Market | D8: =IF(OR(Assessment!C21="Exporter",Assessment!C21="Local Market, Pacfic Region, Exporter", Assessment!C21="Local Market, Exporter",Assessment!C21="Pacific Region, Exporter"), "Suitable Certification For Market","Certification Not Suitable For Market") -> Certification Not Suitable For Market | E8: =IF(OR(Assessment!C21="Exporter",Assessment!C21="Local Market, Pacfic Region, Exporter", Assessment!C21="Local Market, Exporter",Assessment!C21="Pacific Region, Exporter"), "Suitable Certification For Market","Certification Not Suitable For Market") -> Certification Not Suitable For Market | F8: =IF(OR(Assessment!C21="Exporter",Assessment!C21="Local Market, Pacfic Region, Exporter", Assessment!C21="Local Market, Exporter",Assessment!C21="Pacific Region, Exporter"), "Suitable Certification For Market","Certification Not Suitable For Market") -> Certification Not Suitable For Market | G8: =IF(OR(Assessment!C21="Exporter", Assessment!C21="Pacific Region", Assessment!C21= "Local Market, Exporter", Assessment!C21= "Pacific Region, Exporter", Assessment!C21= "Local Market, Pacific Region, Exporter", Assessment!C21= "Local Market, Pacific Region", Assessment!C21= "Pacific Region, Exporter"),"Suitable Certification For Market", "Certification Not Suitable For Market") -> Certification Not Suitable For Market | H8: =IF(OR(Assessment!C21="Exporter",Assessment!C21="Local Market, Pacfic Region, Exporter", Assessment!C21="Local Market, Exporter",Assessment!C21="Pacific Region, Exporter"), "Suitable Certification For Market","Certification Not Suitable For Market") -> Certification Not Suitable For Market | I8: =IF(OR(Assessment!C21="Exporter",Assessment!C21="Local Market, Pacfic Region, Exporter", Assessment!C21="Local Market, Exporter",Assessment!C21="Pacific Region, Exporter"), "Suitable Certification For Market","Certification Not Suitable For Market") -> Certification Not Suitable For Market | J8: =IF(OR(Assessment!C21="Exporter",Assessment!C21="Local Market, Pacfic Region, Exporter", Assessment!C21="Local Market, Exporter",Assessment!C21="Pacific Region, Exporter"), "Suitable Certification For Market","Certification Not Suitable For Market") -> Certification Not Suitable For Market
B9: Chemical Use (Based on Whether Chemicals are Used or Not) | C9: =IF(Assessment!C22="No", "Suitable", "Not Suitable") -> Suitable | D9: =IF(Assessment!C22="No", "Suitable", "Not Suitable") -> Suitable | E9: =IF(Assessment!C22="No", "Suitable", "Not Suitable Due to Chemical Use") -> Suitable | F9: Suitable - No Requirement | G9: Suitable - No Requirement | H9: Suitable - No Requirement | I9: Suitable - No Requirement | J9: Suitable - No Requirement
B10: Social Responsibility / Employment Practices | C10: Suitable - No Requirement | D10: Suitable - No Requirement | E10: Suitable - No Requirement | F10: =IF(OR(Assessment!C23="Formal Contracts",Assessment!C23="Unpaid Family")*AND(Assessment!C24="Yes"),"Suitable","Not Suitable") -> Suitable | G10: Suitable - No Requirement | H10: Suitable - No Requirement | I10: =IF(AND(Assessment!C23="Formal Contracts", Assessment!C24="Yes"),"Suitable","Not Suitable") -> Suitable | J10: =IF(Assessment!C23="Formal Contracts","Suitable","Not Suitable ") -> Suitable
B11: Food Safety Requirements | C11: Suitable - No Requirement | D11: Suitable - No Requirement | E11: Suitable - No Requirement | F11: Suitable - No Requirement | G11: =IF(Assessment!C25="Yes", "Suitable", "Not Suitable") -> Not Suitable | H11: =IF(Assessment!C25="Yes", "Suitable", "Not Suitable") -> Not Suitable | I11: Suitable - No Requirement | J11: Suitable - No Requirement
B12: Operational Suitability | C12: =IF(AND(C6="Suitable Produce",C7="Suitable Operation",C8="Suitable Certification For Market",C9="Suitable"),"Suitable","Not Completely Suitable") -> Not Completely Suitable | D12: =IF(AND(D6="Suitable Produce",D7="Suitable Operation",D8="Suitable Certification For Market",D9="Suitable"),"Suitable","Not Completely Suitable") -> Not Completely Suitable | E12: =IF(AND(E6="Suitable Produce",E7="Suitable Operation",E8="Suitable Certification For Market",E9="Suitable"),"Suitable","Not Completely Suitable") -> Not Completely Suitable | F12: =IF(AND(F6="Suitable Produce",F7="Suitable Operation",F8="Suitable Certification For Market",F10="Suitable"),"Suitable","Not Completely Suitable") -> Not Completely Suitable | G12: =IF(AND(G6="Suitable Produce",G7="Suitable Operation",G8="Suitable Certification For Market",G11="Suitable"),"Suitable","Not Completely Suitable") -> Not Completely Suitable | H12: =IF(AND(H6="Suitable Produce",H7="Suitable Operation",H8="Suitable Certification For Market",H11="Suitable"),"Suitable","Not Completely Suitable") -> Not Completely Suitable | I12: =IF(AND(I6="Suitable Produce",I7="Suitable Operation",I8="Suitable Certification For Market",I10="Suitable"),"Suitable","Not Completely Suitable") -> Not Completely Suitable | J12: =IF(AND(J6="Suitable Produce",J7="Suitable Operation",J8="Suitable Certification For Market"),"Suitable","Not Completely Suitable") -> Not Completely Suitable
B13: Estimated Profit with Certification | C13: =IF(Assessment!C29="N/A","0",(1+Assessment!C33)*(Assessment!C15*Assessment!C16)*(Assessment!C29+1)) -> 28160 | D13: =IF(Assessment!C30="N/A","0",(1+Assessment!C33)*(Assessment!C15*Assessment!C16)*(Assessment!C30+1)) -> 26400 | E13: =IF(Assessment!C30="N/A","0",(1+Assessment!C33)*(Assessment!C15*Assessment!C16)*(Assessment!C30+1)) -> 26400 | F13: =IF(Assessment!C32="N/A","0",(1+Assessment!C33)*(Assessment!C15*Assessment!C16)*(Assessment!C32+1)) -> 26400 | G13: =IF(Assessment!C26="N/A","0",(1+Assessment!C33)*(Assessment!C15*Assessment!C16)*(Assessment!C26+1)) -> 0 | H13: =IF(Assessment!C26="N/A","0",(1+Assessment!C33)*(Assessment!C15*Assessment!C16)*(Assessment!C27+1)) -> 0 | I13: =IF(Assessment!C28="N/A","0",(1+Assessment!C33)*(Assessment!C15*Assessment!C16)*(Assessment!C28+1)) -> 22880 | J13: =IF(Assessment!C31="N/A","0",(1+Assessment!C33)*(Assessment!C15*Assessment!C16)*(Assessment!C31+1)) -> 19360
B14: Estimated Increased Return with Certification | C14: =IF(C13="0","0",C13-(Assessment!$C$15*Assessment!$C$16)) -> 12160 | D14: =IF(D13="0","0",D13-(Assessment!$C$15*Assessment!$C$16)) -> 10400 | E14: =IF(E13="0","0",E13-(Assessment!$C$15*Assessment!$C$16)) -> 10400 | F14: =IF(F13="0","0",F13-(Assessment!$C$15*Assessment!$C$16)) -> 10400 | G14: =IF(G13="0","0",G13-(Assessment!$C$15*Assessment!$C$16)) -> 0 | H14: =IF(H13="0","0",H13-(Assessment!$C$15*Assessment!$C$16)) -> 0 | I14: =IF(I13="0","0",I13-(Assessment!$C$15*Assessment!$C$16)) -> 6880 | J14: =IF(J13="0","0",J13-(Assessment!$C$15*Assessment!$C$16)) -> 3360
B15: Estimated Cost of Certification - (Does not include any internal costs around maintaining certification) | C15: =IF(Assessment!C6="Cook Islands",('Currency Conversion '!B17*'Currency Conversion '!B11),IF(Assessment!C6="Federated State of Micronesia",('Currency Conversion '!B17*'Currency Conversion '!B2),IF(Assessment!C6="Fiji",('Currency Conversion '!B17*'Currency Conversion '!B3),IF(Assessment!C6="Kiribati",('Currency Conversion '!B17*'Currency Conversion '!B5),IF(Assessment!C6="Nauru",('Currency Conversion '!B17*'Currency Conversion '!B6),IF(Assessment!C6="Niue",('Currency Conversion '!B17*'Currency Conversion '!B11),IF(Assessment!C6="Palau",('Currency Conversion '!B17*'Currency Conversion '!B2),IF(Assessment!C6="Papua New Guinea",('Currency Conversion '!B17*'Currency Conversion '!B7),IF(Assessment!C6="Republic of Marshall Islands",('Currency Conversion '!B17*'Currency Conversion '!B2),IF(Assessment!C6="Vanuatu",('Currency Conversion '!B17*'Currency Conversion '!B10),IF(Assessment!C6="Samoa",('Currency Conversion '!B17*'Currency Conversion '!B11),IF(Assessment!C6="Solomon Islands",('Currency Conversion '!B17*'Currency Conversion '!B4),IF(Assessment!C6="Timor Leste",('Currency Conversion '!B17*'Currency Conversion '!B2),IF(Assessment!C6="Tonga",('Currency Conversion '!B17*'Currency Conversion '!B8),IF(Assessment!C6="Tuvalu",('Currency Conversion '!B17*'Currency Conversion '!B9),IF(Assessment!C6="French Polynesia",('Currency Conversion '!B17*'Currency Conversion '!B12),IF(Assessment!C6="New Caledonia",('Currency Conversion '!B17*'Currency Conversion '!B12)))))))))))))))))) -> 0 | D15: =IF(Assessment!C6="Cook Islands",('Currency Conversion '!B18*'Currency Conversion '!B11),IF(Assessment!C6="Federated State of Micronesia",('Currency Conversion '!B18*'Currency Conversion '!B2),IF(Assessment!C6="Fiji",('Currency Conversion '!B18*'Currency Conversion '!B3),IF(Assessment!C6="Kiribati",('Currency Conversion '!B18*'Currency Conversion '!B6),IF(Assessment!C6="Nauru",('Currency Conversion '!B18*'Currency Conversion '!B6),IF(Assessment!C6="Niue",('Currency Conversion '!B18*'Currency Conversion '!B11),IF(Assessment!C6="Palau",('Currency Conversion '!B18*'Currency Conversion '!B2),IF(Assessment!C6="Papua New Guinea",('Currency Conversion '!B18*'Currency Conversion '!B7),IF(Assessment!C6="Republic of Marshall Islands",('Currency Conversion '!B18*'Currency Conversion '!B2),IF(Assessment!C6="Vanuatu",('Currency Conversion '!B18*'Currency Conversion '!B10),IF(Assessment!C6="Samoa",('Currency Conversion '!B18*'Currency Conversion '!B11),IF(Assessment!C6="Solomon Islands",('Currency Conversion '!B18*'Currency Conversion '!B4),IF(Assessment!C6="Timor Leste",('Currency Conversion '!B18*'Currency Conversion '!B2),IF(Assessment!C6="Tonga",('Currency Conversion '!B18*'Currency Conversion '!B8),IF(Assessment!C6="Tuvalu",('Currency Conversion '!B18*'Currency Conversion '!B6),IF(Assessment!C6="French Polynesia",('Currency Conversion '!B18*'Currency Conversion '!B12),IF(Assessment!C6="New Caledonia",('Currency Conversion '!B18*'Currency Conversion '!B12)))))))))))))))))) -> 6800 | E15: =E16*Assessment!C17 -> 20114.4 | F15: =IF(Assessment!C6="Cook Islands",('Currency Conversion '!B16*'Currency Conversion '!B11),IF(Assessment!C6="Federated State of Micronesia",('Currency Conversion '!B16*'Currency Conversion '!B2),IF(Assessment!C6="Fiji",('Currency Conversion '!B16*'Currency Conversion '!B3),IF(Assessment!C6="Kiribati",('Currency Conversion '!B16*'Currency Conversion '!B6),IF(Assessment!C6="Nauru",('Currency Conversion '!B16*'Currency Conversion '!B6),IF(Assessment!C6="Niue",('Currency Conversion '!B16*'Currency Conversion '!B11),IF(Assessment!C6="Palau",('Currency Conversion '!B16*'Currency Conversion '!B2),IF(Assessment!C6="Papua New Guinea",('Currency Conversion '!B16*'Currency Conversion '!B7),IF(Assessment!C6="Republic of Marshall Islands",('Currency Conversion '!B16*'Currency Conversion '!B2),IF(Assessment!C6="Vanuatu",('Currency Conversion '!B16*'Currency Conversion '!B10),IF(Assessment!C6="Samoa",('Currency Conversion '!B16*'Currency Conversion '!B11),IF(Assessment!C6="Solomon Islands",('Currency Conversion '!B16*'Currency Conversion '!B4),IF(Assessment!C6="Timor Leste",('Currency Conversion '!B16*'Currency Conversion '!B2),IF(Assessment!C6="Tonga",('Currency Conversion '!B16*'Currency Conversion '!B8),IF(Assessment!C6="Tuvalu",('Currency Conversion '!B16*'Currency Conversion '!B6),IF(Assessment!C6="French Polynesia",('Currency Conversion '!B16*'Currency Conversion '!B12),IF(Assessment!C6="New Caledonia",('Currency Conversion '!B16*'Currency Conversion '!B12)))))))))))))))))) -> 4760 | G15: =IF(Assessment!C6="Cook Islands",('Currency Conversion '!B21*'Currency Conversion '!B11),IF(Assessment!C6="Federated State of Micronesia",('Currency Conversion '!B21*'Currency Conversion '!B2),IF(Assessment!C6="Fiji",('Currency Conversion '!B21*'Currency Conversion '!B3),IF(Assessment!C6="Kiribati",('Currency Conversion '!B21*'Currency Conversion '!B6),IF(Assessment!C6="Nauru",('Currency Conversion '!B21*'Currency Conversion '!B6),IF(Assessment!C6="Niue",('Currency Conversion '!B21*'Currency Conversion '!B11),IF(Assessment!C6="Palau",('Currency Conversion '!B21*'Currency Conversion '!B2),IF(Assessment!C6="Papua New Guinea",('Currency Conversion '!B21*'Currency Conversion '!B7),IF(Assessment!C6="Republic of Marshall Islands",('Currency Conversion '!B21*'Currency Conversion '!B2),IF(Assessment!C6="Vanuatu",('Currency Conversion '!B21*'Currency Conversion '!B10),IF(Assessment!C6="Samoa",('Currency Conversion '!B21*'Currency Conversion '!B11),IF(Assessment!C6="Solomon Islands",('Currency Conversion '!B21*'Currency Conversion '!B4),IF(Assessment!C6="Timor Leste",('Currency Conversion '!B21*'Currency Conversion '!B2),IF(Assessment!C6="Tonga",('Currency Conversion '!B21*'Currency Conversion '!B8),IF(Assessment!C6="Tuvalu",('Currency Conversion '!B21*'Currency Conversion '!B6),IF(Assessment!C6="French Polynesia",('Currency Conversion '!B21*'Currency Conversion '!B12),IF(Assessment!C6="New Caledonia",('Currency Conversion '!B21*'Currency Conversion '!B12)))))))))))))))))) -> 1360 | H15: =IF(Assessment!C6="Cook Islands",('Currency Conversion '!B23*'Currency Conversion '!B11),IF(Assessment!C6="Federated State of Micronesia",('Currency Conversion '!B23*'Currency Conversion '!B2),IF(Assessment!C6="Fiji",('Currency Conversion '!B23*'Currency Conversion '!B3),IF(Assessment!C6="Kiribati",('Currency Conversion '!B23*'Currency Conversion '!B6),IF(Assessment!C6="Nauru",('Currency Conversion '!B23*'Currency Conversion '!B6),IF(Assessment!C6="Niue",('Currency Conversion '!B23*'Currency Conversion '!B11),IF(Assessment!C6="Palau",('Currency Conversion '!B23*'Currency Conversion '!B2),IF(Assessment!C6="Papua New Guinea",('Currency Conversion '!B23*'Currency Conversion '!B7),IF(Assessment!C6="Republic of Marshall Islands",('Currency Conversion '!B23*'Currency Conversion '!B2),IF(Assessment!C6="Vanuatu",('Currency Conversion '!B23*'Currency Conversion '!B10),IF(Assessment!C6="Samoa",('Currency Conversion '!B23*'Currency Conversion '!B11),IF(Assessment!C6="Solomon Islands",('Currency Conversion '!B23*'Currency Conversion '!B4),IF(Assessment!C6="Timor Leste",('Currency Conversion '!B23*'Currency Conversion '!B2),IF(Assessment!C6="Tonga",('Currency Conversion '!B23*'Currency Conversion '!B8),IF(Assessment!C6="Tuvalu",('Currency Conversion '!B23*'Currency Conversion '!B6),IF(Assessment!C6="French Polynesia",('Currency Conversion '!B23*'Currency Conversion '!B12),IF(Assessment!C6="New Caledonia",('Currency Conversion '!B23*'Currency Conversion '!B12)))))))))))))))))) -> 5032 | I15: =IF(Assessment!C6="Cook Islands",('Currency Conversion '!B20*'Currency Conversion '!B11),IF(Assessment!C6="Federated State of Micronesia",('Currency Conversion '!B20*'Currency Conversion '!B2),IF(Assessment!C6="Fiji",('Currency Conversion '!B20*'Currency Conversion '!B3),IF(Assessment!C6="Kiribati",('Currency Conversion '!B20*'Currency Conversion '!B6),IF(Assessment!C6="Nauru",('Currency Conversion '!B20*'Currency Conversion '!B6),IF(Assessment!C6="Niue",('Currency Conversion '!B20*'Currency Conversion '!B11),IF(Assessment!C6="Palau",('Currency Conversion '!B20*'Currency Conversion '!B2),IF(Assessment!C6="Papua New Guinea",('Currency Conversion '!B20*'Currency Conversion '!B7),IF(Assessment!C6="Republic of Marshall Islands",('Currency Conversion '!B20*'Currency Conversion '!B2),IF(Assessment!C6="Vanuatu",('Currency Conversion '!B20*'Currency Conversion '!B10),IF(Assessment!C6="Samoa",('Currency Conversion '!B20*'Currency Conversion '!B11),IF(Assessment!C6="Solomon Islands",('Currency Conversion '!B20*'Currency Conversion '!B4),IF(Assessment!C6="Timor Leste",('Currency Conversion '!B20*'Currency Conversion '!B2),IF(Assessment!C6="Tonga",('Currency Conversion '!B20*'Currency Conversion '!B8),IF(Assessment!C6="Tuvalu",('Currency Conversion '!B20*'Currency Conversion '!B6),IF(Assessment!C6="French Polynesia",('Currency Conversion '!B20*'Currency Conversion '!B12),IF(Assessment!C6="New Caledonia",('Currency Conversion '!B20*'Currency Conversion '!B12)))))))))))))))))) -> 8160 | J15: =IF(Assessment!C6="Cook Islands",('Currency Conversion '!B22*'Currency Conversion '!B11),IF(Assessment!C6="Federated State of Micronesia",('Currency Conversion '!B22*'Currency Conversion '!B2),IF(Assessment!C6="Fiji",('Currency Conversion '!B22*'Currency Conversion '!B3),IF(Assessment!C6="Kiribati",('Currency Conversion '!B22*'Currency Conversion '!B6),IF(Assessment!C6="Nauru",('Currency Conversion '!B22*'Currency Conversion '!B6),IF(Assessment!C6="Niue",('Currency Conversion '!B22*'Currency Conversion '!B11),IF(Assessment!C6="Palau",('Currency Conversion '!B22*'Currency Conversion '!B2),IF(Assessment!C6="Papua New Guinea",('Currency Conversion '!B22*'Currency Conversion '!B7),IF(Assessment!C6="Republic of Marshall Islands",('Currency Conversion '!B22*'Currency Conversion '!B2),IF(Assessment!C6="Vanuatu",('Currency Conversion '!B22*'Currency Conversion '!B10),IF(Assessment!C6="Samoa",('Currency Conversion '!B22*'Currency Conversion '!B11),IF(Assessment!C6="Solomon Islands",('Currency Conversion '!B22*'Currency Conversion '!B4),IF(Assessment!C6="Timor Leste",('Currency Conversion '!B22*'Currency Conversion '!B2),IF(Assessment!C6="Tonga",('Currency Conversion '!B22*'Currency Conversion '!B8),IF(Assessment!C6="Tuvalu",('Currency Conversion '!B22*'Currency Conversion '!B6),IF(Assessment!C6="French Polynesia",('Currency Conversion '!B22*'Currency Conversion '!B12),IF(Assessment!C6="New Caledonia",('Currency Conversion '!B22*'Currency Conversion '!B12)))))))))))))))))) -> 35360
B16: Estimated Cost Per Group Individual (Grower Group only) | E16: =IF(Assessment!C6="Cook Islands",('Currency Conversion '!B19*'Currency Conversion '!B11),IF(Assessment!C6="Federated State of Micronesia",('Currency Conversion '!B19*'Currency Conversion '!B2),IF(Assessment!C6="Fiji",('Currency Conversion '!B19*'Currency Conversion '!B3),IF(Assessment!C6="Kiribati",('Currency Conversion '!B19*'Currency Conversion '!B6),IF(Assessment!C6="Nauru",('Currency Conversion '!B19*'Currency Conversion '!B6),IF(Assessment!C6="Niue",('Currency Conversion '!B19*'Currency Conversion '!B11),IF(Assessment!C6="Palau",('Currency Conversion '!B19*'Currency Conversion '!B2),IF(Assessment!C6="Papua New Guinea",('Currency Conversion '!B19*'Currency Conversion '!B7),IF(Assessment!C6="Republic of Marshall Islands",('Currency Conversion '!B19*'Currency Conversion '!B2),IF(Assessment!C6="Vanuatu",('Currency Conversion '!B19*'Currency Conversion '!B10),IF(Assessment!C6="Samoa",('Currency Conversion '!B19*'Currency Conversion '!B11),IF(Assessment!C6="Solomon Islands",('Currency Conversion '!B19*'Currency Conversion '!B4),IF(Assessment!C6="Timor Leste",('Currency Conversion '!B19*'Currency Conversion '!B2),IF(Assessment!C6="Tonga",('Currency Conversion '!B19*'Currency Conversion '!B8),IF(Assessment!C6="Tuvalu",('Currency Conversion '!B19*'Currency Conversion '!B6),IF(Assessment!C6="French Polynesia",('Currency Conversion '!B19*'Currency Conversion '!B12),IF(Assessment!C6="New Caledonia",('Currency Conversion '!B19*'Currency Conversion '!B12)))))))))))))))))) -> 670.48 | F16: =IF(Assessment!$B$17="How many farmers are part of your grower group?",(Suitability!F15/Assessment!$C$17),"") -> 158.6666667 | G16: =IF(Assessment!$B$17="How many farmers are part of your grower group?",(Suitability!G15/Assessment!$C$17),"") -> 45.33333333 | H16: =IF(Assessment!$B$17="How many farmers are part of your grower group?",(Suitability!H15/Assessment!$C$17),"") -> 167.7333333 | I16: =IF(Assessment!$B$17="How many farmers are part of your grower group?",(Suitability!I15/Assessment!$C$17),"") -> 272
B17: Estimated Profit Gain from Certification For Individual Farm | C17: =C14-C15 -> 12160 | D17: =D14-D15 -> 3600 | E17: =IF(E16="",0,E14-E16) -> 9729.52 | F17: =IF(F16="",F14-F15,F14-F16) -> 10241.33333 | G17: =IF(G16="",G14-G15,G14-G16) -> -45.33333333 | H17: =IF(H16="",H14-H15,H14-H16) -> -167.7333333 | I17: =IF(I16="",I14-I15,I14-I16) -> 6608 | J17: =J14-J15 -> -32000

Sheet Decision Finder
B2: Decision Finder
B4: Operational Suitability | E4: Overall Assessment | F4: The following certification can be deemed to be likely suitable for your business given the information provided:
B5: Organic 3rd Party Individual | C5: =Suitability!D12 -> Not Completely Suitable
B6: Organic 3rd Party Group | C6: =Suitability!E12 -> Not Completely Suitable | E6: Organic 3rd Party Individual | F6: =IF(AND(C5="Suitable",C15>0),"Suitable and Beneficial","Not Suitable or Beneficial") -> Not Suitable or Beneficial
B7: Organic PGS | C7: =Suitability!C12 -> Not Completely Suitable | E7: Organic 3rd Party Group | F7: Not Suitable or Beneficial
B8: Fair Trade | C8: =Suitability!F12 -> Not Completely Suitable | E8: Organic PGS | F8: Not Suitable or Beneficial
B9: Rainforest Alliance | C9: =Suitability!I12 -> Not Completely Suitable | E9: Fair Trade | F9: Not Suitable or Beneficial
B10: Food Saftey (HACCP) | C10: =Suitability!G12 -> Not Completely Suitable | E10: Rainforest Alliance | F10: Not Suitable or Beneficial
B11: Food Saftey (GlobalGAP) | C11: =Suitability!H12 -> Not Completely Suitable | E11: Food Saftey (HACCP) | F11: Not Suitable or Beneficial
B12: Sustainable Fisheries | C12: =Suitability!J12 -> Not Completely Suitable | E12: Food Saftey (GlobalGAP) | F12: Not Suitable or Beneficial
E13: Sustainable Fisheries | F13: Not Suitable or Beneficial
B14: Estimated Profit Gain from Certification
B15: Organic 3rd Party Individual | C15: =Suitability!D17 -> 3600
B16: Organic 3rd Party Group | C16: =Suitability!E17 -> 9729.52
B17: Organic PGS | C17: =Suitability!C17 -> 12160
B18: Fair Trade | C18: =Suitability!F17 -> 10241.33333
B19: Rainforest Alliance | C19: =Suitability!I17 -> 6608
B20: Food Saftey (HACCP) | C20: =Suitability!G17 -> -45.33333333
B21: Food Saftey (GlobalGAP) | C21: =Suitability!H17 -> -167.7333333
B22: Sustainable Fisheries | C22: =Suitability!J17 -> -32000
B24: ***We note that this does not account for any internal costs of maintaining certification**** - A table that will allow you to calculate the internal cost is in the Business Planning Tab

Sheet Relevant Resources
B2: Relevant Resources
B4: Food Safety
B5: Regional framework for action on food safety in the Western Pacific (who.int)
B6: https://phamaplus.com.au/media/food-safety-certification-a-prerequisite-for-trade/
B7: https://www.globalgap.org/
B8: What is HACCP? | Is It Required for Food Safety Programs? | AIFS
B10: Organic
B11: https://ifoam.bio/
B12: POETCOM
B13: Pacific Organic Standard
B16: Fair Trade
B17: https://www.fairtrade.net/
B18: FlowCert
B22: Rainforest Alliance
B23: https://www.rainforest-alliance.org/why-certification/
B28: Marine Stewardship Council
B29: What is sustainable fishing | Marine Stewardship Council (msc.org)

Sheet Business Plan
B2: Business Plan
B4: Mission Statement | D4: Operating Budget
B5: The mission statement can include: the purpose for which the company exists; what the company does; the company's goals; quality; its role in the community; ethical practices; profitability; customers; shareholders; the environment. It is extremely important because everything the business does in the future must be consistent and in compliance with its content. | D5: Having a budget for your operation is a great way to plan and track the financial performance of your business. By creating a budget, you’re also generating an accurate, real-world view of how your year will pan out financially. Of course, things can and will change, but it gives you some key markers to hit over the next period, as well as a checklist to measure your farm’s financial progress against.When used as part of the assessment tool creating an operating budget is invaluable to assist assessment of whether or how much profit will be made to justify te cost of certification which can drive the choice of which is the best certification scheme.
D6: An example of a simple five year budget is shown below.
D8: Description | E8: Year 1 | F8: Year 2 | G8: Year 3 | H8: Year 4 | I8: Year 5
D9: Revenue
D10: Yield
D11: Price
D12: Gross Sales
D13: Fixed Costs
D14: Land/ rent
D15: Buildings
D16: Machinery
B17: Business Goals | D17: Administration
B18: Business goals should be broken down to reflect the important aspects of the short (the first or start up years) medium ( year 3 – 5 ) and long term ( 5 years plus, where you want to get to) goals of the business to allow the owners to concentrate on the things that they must do to ensure that the business is successful in the long term. | D18: Certification
B19: Business goals should be Specific, Measurable, Achievable, Realistic and Time bound to be effective. An example: Lift the yield of coffee production to XX kg per tree by the end of 2025. | D19: Fixed Cost Total
D20: Variable Costs
B21: Short Term Goals | D21: Labour
D22: Planting
D23: Weed control
D24: Fertiliser
D25: Pest Control
D26: Harvesting
D27: Marketing
D28: Quality Control
D29: Variable Costs Total
D30: Total Costs
D31: Returns
B33: Medium Term Goals
D34: Internal Costs of Certification
D35: This should allow you to calculate the internal costs of certification based on estimating the amount of time spent on the corresponding tasks associated with certification
E36: Time Spent (hours) | F36: Hourly Rate | G36: Total Costs
D37: Internal Costs
D38: Preparation for Certification Registration
D39: Internal Coordination with Standards
D40: Internal Training
D41: Audit Preparation
D42: Audit Process
D43: Maintaining Internal processes
D44: Record Keeping and Administration
D45: Other
B46: Long Term Goals | D46: Total Internal Costs

Sheet Currency Conversion (hidden)
B1: 2 year average
A2: NZD to USD | B2: 0.62
A3: NZD to FJD | B3: 1.36
A4: NZD to SBD | B4: 5.14
A5: NZD to KID
A6: NZD to AUSD | B6: 0.93
A7: NZD to PGK | B7: 2.29
A8: NZD to TOP | B8: 1.44
A9: NZD to TVD | B9: 0.91
A10: NZD to VUV | B10: 72.33
A11: NZD to NZD | B11: 1
A12: NZD to FRANC | B12: 66.84
A14: Cost of Certifications
A15: Fair Trade Individual | B15: 3500 | D15: Calculated using FLO
A16: Fair Trade Certification (small scale organisation group) | B16: 3500 | D16: =D15 -> Calculated using FLO
A17: Organic PGS | B17: 0 | D17: No fee charged by POETCOM
A18: Organic Individual (3rd Party) | B18: 5000
A19: Organic Grower Group (3rd party) | B19: 493 | D19: Costs outline in https://orgprints.org/id/eprint/35159/7/fibl-2019-ics.pdf. Inflation was added and the figure adjusted slightly for additional smaller groups and inflation
A20: Rainforest Alliance | B20: 6000 | D20: Based on a case study that outlined the cost was approximately $156 per ha plus audit costs which range from $1000-$5000 (https://www.coffeehabitat.com/2011/04/cost-of-eco-certification/)
A21: Food Saftey (HACCP) | B21: 1000 | D21: Based on average costs for HACCP
A22: Sustainable Fisheries Marine Stewardship Council | B22: 26000 | D22: Based on the range of costings assuming that the pacific organisations operations are low in complexity
A23: Food Saftey (Global Gap) | B23: 3700
